bitfinex/quotes_ETHUSD_20240924
["timestamp","ask_amount","ask_price","bid_price","bid_amount"]
[1727178106788,0.0609,2641.7,2641.6,50.54888663]
[1727178107217,0.09461396,2643.2,2641.7,3.0]
[1727178107417,0.7738,2643.7,2641.7,3.0]
[1727178107418,0.7738,2643.7,2641.7,3.5806124]
[1727178107585,8.131258,2644.3,2642.0,3.86724359]
[1727178107800,8.131258,2644.3,2642.6,0.7807]
[1727178107801,0.09457263,2644.2,2642.6,0.7807]
[1727178108014,0.841258,2644.3,2643.0,3.55]
[1727178108015,0.067458,2644.3,2643.0,3.55]
[1727178108212,0.067458,2644.3,2643.1,3.78337]
[1727178108528,0.067458,2644.3,2643.3,4.33306]
[1727178108730,0.067458,2644.3,2643.3,0.55]
[1727178108983,0.067458,2644.3,2643.8,0.7807]
[1727178109184,0.067458,2644.3,2644.1,3.78193]
[1727178109349,0.067458,2644.3,2644.2,48.960985]
[1727178109543,0.067458,2644.3,2644.2,52.7992409]
[1727178110283,0.0768808,2645.9,2644.5,0.7807]
[1727178110486,0.0768808,2645.9,2644.7,3.78111]
[1727178111579,0.0768808,2645.9,2644.5,3.7807]
[1727178111880,0.0768808,2645.9,2644.9,3.7808]
[1727178112586,0.09449477,2645.8,2644.5,0.7807]
[1727178112785,0.09449477,2645.8,2644.5,3.7807]
[1727178112988,0.09449477,2645.8,2644.5,0.7807]
[1727178113189,0.09449477,2645.8,2644.6,3.78128]
[1727178113698,0.09449477,2645.8,2644.5,0.7807]
[1727178114058,0.09449477,2645.8,2644.6,3.78126]
[1727178115198,0.09449477,2645.8,2643.9,0.7807]
[1727178115199,3.0,2645.6,2643.9,0.7807]
[1727178115384,3.0,2645.6,2644.3,3.78167]
[1727178115385,0.094524,2645.5,2644.3,3.78167]
[1727178116083,0.094524,2645.5,2644.1,3.78195]
[1727178116450,3.094524,2645.5,2644.1,3.78195]
[1727178116655,0.094524,2645.5,2644.1,3.78195]
[1727178117056,0.094524,2645.5,2644.2,3.78184]
[1727178118492,0.094524,2645.5,2644.3,3.78164]
[1727178118854,0.094524,2645.5,2644.2,3.78184]
[1727178119359,0.094524,2645.5,2644.3,3.78171]
[1727178119569,3.874554,2645.5,2644.3,3.78171]
[1727178120498,0.59186774,2645.4,2644.3,3.78169]
[1727178120656,0.09452538,2645.3,2644.3,7.5633]
[1727178120859,0.09452538,2645.3,2644.3,3.78161]
[1727178121177,0.09452538,2645.3,2644.4,3.78156]
[1727178121498,0.09452538,2645.3,2644.4,3.78155]
[1727178122060,0.09452538,2645.3,2644.6,3.78128]
[1727178122316,0.59186473,2645.2,2644.6,3.78128]
[1727178122598,2.17848112,2645.1,2644.0,3.78203]
[1727178122783,2.17848112,2645.1,2644.0,0.456273]
[1727178122784,0.7361939,2645.0,2644.0,0.456273]
[1727178122983,0.78182464,2645.3,2644.7,3.78113]
[1727178123181,5.50104971,2645.7,2645.2,3.78031]
[1727178123182,1.1612161,2645.7,2645.2,3.78031]
[1727178123387,0.73735022,2645.6,2645.1,3.78044]
[1727178123602,0.1713843,2645.9,2644.7,0.378128]
[1727178123603,0.1713843,2645.9,2645.2,3.78041]
[1727178123783,0.946741,2645.8,2645.2,3.78041]
[1727178124113,3.17617498,2645.9,2645.2,3.78041]
[1727178124114,1.2380969,2645.9,2645.4,3.78012]
[1727178124259,0.0768808,2645.9,2645.5,3.77999]
[1727178124699,0.0768808,2645.9,2645.4,3.78012]
[1727178124860,0.0768808,2645.9,2645.5,3.77996]
[1727178125600,0.0768808,2645.9,2645.6,3.77981]
[1727178125896,0.0768808,2645.9,2645.6,3.77985]
[1727178126304,0.0768808,2645.9,2645.4,3.78003]
[1727178126464,0.0768808,2645.9,2645.5,3.77998]
[1727178127071,0.0768808,2645.9,2645.4,7.56007]
[1727178127517,0.0768808,2645.9,2645.6,3.77974]
[1727178127726,2.70694971,2646.6,2645.7,15.41582513]
[1727178127727,0.7559,2646.6,2645.7,15.41582513]
[1727178127876,0.038,2647.0,2646.6,3.7784]
[1727178128415,5.40235894,2647.5,2647.1,3.7777]
[1727178128416,0.0768808,2647.5,2647.1,3.7777]
[1727178128713,0.0768808,2647.5,2647.4,3.77729]
[1727178128945,0.0768808,2647.5,2647.4,38.33011542]
[1727178129109,0.0768808,2647.5,2647.4,38.254582]
[1727178129778,0.0768808,2647.5,2647.4,20.779895]
[1727178130574,0.0768808,2647.5,2647.4,21.329895]
[1727178130779,0.0768808,2647.5,2647.4,24.29428644]
[1727178136596,0.0768808,2647.5,2647.4,23.74428644]
[1727178137137,0.0768808,2647.5,2647.4,20.779895]
[1727178137931,0.0768808,2647.5,2647.4,21.2189864]
[1727178138411,0.0768808,2647.5,2647.4,21.7689864]
[1727178139250,0.0768808,2647.5,2647.4,21.329895]
[1727178140964,0.0388808,2647.5,2647.4,12.975253]
[1727178141169,0.0388808,2647.5,2647.4,12.163946]
[1727178141933,0.0388808,2647.5,2647.4,8.386656]
[1727178142129,0.0388808,2647.5,2647.4,3.77729]
[1727178142668,0.0388808,2647.5,2647.4,10.18364]
[1727178145532,0.0388808,2647.5,2647.4,6.40635]
[1727178145837,0.0388808,2647.5,2647.0,3.77775]
[1727178146243,0.0388808,2647.5,2646.6,0.7551]
[1727178146244,0.0388808,2647.5,2646.7,3.77826]
[1727178146441,0.0388808,2647.5,2647.3,3.77742]
[1727178146676,0.0388808,2647.5,2647.3,3.77735]
[1727178146885,0.0388808,2647.5,2647.4,3.755782]
[1727178147064,0.0388808,2647.5,2647.4,7.533072]
[1727178147260,0.0388808,2647.5,2647.4,12.831072]
[1727178147462,0.0388808,2647.5,2647.4,9.053782]
[1727178148066,0.0388808,2647.5,2647.4,12.831072]
[1727178155977,0.0388808,2647.5,2647.4,4.659125]
[1727178156176,0.0388808,2647.5,2647.3,3.77739]
[1727178156378,0.0388808,2647.5,2647.0,3.81582]
[1727178156565,3.8160408,2647.5,2647.0,3.81582]
[1727178156766,3.8160408,2647.5,2647.0,0.038]
[1727178157005,3.8160408,2647.5,2647.0,3.81582]
[1727178158236,3.77636,2648.1,2647.5,3.77707]
[1727178158540,3.77657,2648.0,2647.4,3.77728]
[1727178158681,3.77657,2648.0,2647.4,7.55449]
[1727178158887,3.77657,2648.0,2647.4,3.77721]
[1727178159336,3.77657,2648.0,2647.4,7.55441]
[1727178159500,3.77636,2648.1,2647.4,3.7772]
[1727178159829,4.55852,2648.2,2647.6,3.77692]
[1727178160130,4.55852,2648.2,2647.6,7.55384]
[1727178160692,4.55852,2648.2,2647.6,3.77692]
[1727178160890,4.55852,2648.2,2647.6,7.55384]
[1727178161127,4.55852,2648.2,2647.6,3.77692]
[1727178161326,4.55852,2648.2,2647.7,3.77685]
[1727178161710,3.77643,2648.0,2647.5,3.77707]
[1727178161926,4.55852,2648.2,2647.6,3.77697]
[1727178161927,3.77629,2648.1,2647.6,3.77697]
[1727178164042,3.77629,2648.1,2647.6,7.55389]
[1727178164237,4.55854,2648.2,2647.4,3.7772]
[1727178164529,3.77653,2648.0,2647.5,3.77714]
[1727178165026,3.7766,2647.9,2647.3,3.77732]
[1727178165461,3.7766,2647.9,2647.4,3.77728]
[1727178165770,3.7766,2647.9,2647.3,3.77732]
[1727178165936,3.7766,2647.9,2647.3,7.55467]
[1727178165937,3.87124333,2647.8,2647.3,7.55467]
[1727178166268,3.87124333,2647.8,2647.3,3.77732]
[1727178166767,3.77691,2647.7,2647.2,3.77753]
[1727178167063,3.77708,2647.6,2647.0,3.038]
[1727178167365,0.8127,2647.4,2647.0,0.038]
[1727178167568,0.77892204,2648.0,2647.0,0.038]
[1727178167569,4.55543204,2648.0,2647.3,3.7773]
[1727178167723,3.77651,2648.0,2647.3,3.7773]
[1727178167923,3.77666,2647.9,2647.4,3.77719]
[1727178168370,3.77672,2647.8,2647.3,3.7773]
[1727178168822,7.55354,2647.8,2647.3,3.7773]
[1727178169027,3.77689,2647.7,2647.3,3.7773]
[1727178169772,3.77701,2647.6,2647.1,3.77761]
[1727178170058,8.33254204,2647.8,2647.2,3.77753]
[1727178170265,8.33254204,2647.8,2647.1,3.77761]
[1727178170266,1.80754447,2647.7,2647.3,3.77741]
[1727178170567,2.58646651,2647.7,2647.3,3.77741]
[1727178170748,3.77731,2647.4,2647.0,0.038]
[1727178170937,3.77771,2647.1,2647.0,0.038]
[1727178171137,3.87215932,2647.1,2647.0,0.038]
[1727178171468,6.36689129,2647.1,2647.0,0.038]
[1727178171968,5.58796925,2647.1,2647.0,0.038]
[1727178172130,6.37352834,2647.1,2647.0,0.038]
[1727178172532,6.75237542,2647.1,2647.0,0.038]
[1727178173135,6.75375447,2647.1,2647.0,0.038]
[1727178173340,8.70901822,2647.1,2647.0,0.038]
[1727178173542,8.61456293,2647.1,2647.0,0.038]
[1727178173775,9.00599219,2647.1,2647.0,0.038]
[1727178173959,7.04049409,2647.1,2647.0,0.038]
[1727178174159,7.13495544,2647.1,2647.0,0.038]
[1727178174670,9.007741,2647.1,2647.0,0.038]
[1727178174849,7.04049409,2647.1,2647.0,0.038]
[1727178175178,9.007741,2647.1,2647.0,0.038]
[1727178175347,7.04049409,2647.1,2647.0,0.038]
[1727178175552,9.007741,2647.1,2647.0,0.038]
[1727178175750,5.230031,2647.1,2647.0,0.038]
[1727178175951,9.007741,2647.1,2647.0,0.038]
[1727178177576,7.04049409,2647.1,2647.0,0.038]
[1727178177778,7.13494718,2647.1,2647.0,0.038]
[1727178178077,7.13531928,2647.1,2647.0,0.038]
[1727178178586,8.70785039,2647.1,2647.0,0.038]
[1727178178783,7.04086619,2647.1,2647.0,0.038]
[1727178179089,7.13532206,2647.1,2647.0,0.038]
[1727178179282,8.70784738,2647.1,2647.0,0.038]
[1727178179483,8.61339151,2647.1,2647.0,0.038]
[1727178181192,8.61412319,2647.1,2647.0,0.038]
[1727178182052,4.83641319,2647.1,2647.0,0.038]
[1727178182252,2.99198188,2647.1,2647.0,0.038]
[1727178183611,6.76969188,2647.1,2647.0,0.038]
[1727178183890,6.86414547,2647.1,2647.0,0.038]
[1727178184557,8.70771917,2647.1,2647.0,0.038]
[1727178184751,8.61326558,2647.1,2647.0,0.038]
[1727178185991,8.61354273,2647.1,2647.0,0.038]
[1727178186175,9.00696485,2647.1,2647.0,0.038]
[1727178186582,7.04101741,2647.1,2647.0,0.038]
[1727178186765,7.13548481,2647.1,2647.0,0.038]
[1727178186971,7.55705,2646.6,2646.1,3.77908]
[1727178187192,0.72520769,2646.5,2646.1,3.77908]
[1727178187401,4.50384769,2646.5,2646.0,3.77917]
[1727178187551,0.78636985,2646.6,2646.0,3.77917]
[1727178187758,1.08748428,2646.5,2646.0,3.77917]
[1727178187959,4.56500985,2646.5,2646.0,3.77917]
[1727178188160,3.77864,2646.5,2646.0,3.77917]
[1727178188805,3.77887,2646.3,2645.9,3.77942]
[1727178188961,3.77887,2646.3,2645.6,3.0]
[1727178188962,3.77916,2646.1,2645.7,3.0]
[1727178189160,3.77916,2646.1,2645.6,6.77976]
[1727178189161,3.77916,2646.1,2645.6,3.77976]
[1727178189466,3.77935,2646.0,2645.5,3.77987]
[1727178189674,3.77935,2646.0,2645.6,3.77984]
[1727178189977,3.77948,2645.9,2645.4,4.53232]
[1727178190290,3.77943,2645.9,2645.4,3.78002]
[1727178190506,7.55872,2646.0,2645.5,3.77992]
[1727178190666,3.77935,2646.0,2645.5,3.77992]
[1727178190868,3.77944,2645.9,2645.5,3.77992]
[1727178191104,3.77944,2645.9,2645.2,4.53264]
[1727178191263,3.77961,2645.8,2645.3,3.78018]
[1727178191704,3.77961,2645.8,2645.3,3.0]
[1727178191902,3.77961,2645.8,2645.4,3.78014]
[1727178192604,3.77943,2645.9,2645.4,3.78014]
[1727178194003,4.56543985,2646.2,2645.7,3.7797]
[1727178194310,0.038,2646.0,2645.7,3.7797]
[1727178194469,0.038,2646.0,2645.5,0.56151771]
[1727178194805,0.038,2646.0,2645.5,3.77987]
[1727178195013,3.8173,2646.0,2645.5,3.77987]
[1727178195593,3.8173,2646.0,2645.4,3.78005]
[1727178195806,0.09449018,2646.1,2645.5,3.77992]
[1727178196280,0.09449018,2646.1,2645.2,1.31381771]
[1727178196281,3.77953,2645.9,2645.2,5.09418771]
[1727178196611,3.77972,2645.7,2645.3,3.78024]
[1727178196992,3.77972,2645.7,2645.2,4.53267]
[1727178197315,3.87408035,2645.8,2645.3,3.78024]
[1727178197520,3.77953,2645.9,2645.4,3.78013]
[1727178197678,3.77953,2645.9,2645.5,3.77998]
[1727178197878,3.77953,2645.9,2645.4,3.78005]
[1727178198793,3.77953,2645.9,2645.4,7.56011]
[1727178199511,3.77953,2645.9,2645.4,3.78005]
[1727178200715,3.77925,2646.1,2645.6,3.77978]
[1727178200923,3.77925,2646.1,2645.7,3.77971]
[1727178201410,0.09448911,2646.2,2645.7,3.77971]
[1727178201609,3.77921,2646.1,2645.6,3.77984]
[1727178202394,3.77921,2646.1,2645.7,3.7797]
[1727178202702,3.77921,2646.1,2645.6,3.77984]
[1727178204040,3.77921,2646.1,2645.7,3.7797]
[1727178204552,3.77921,2646.1,2645.6,3.77984]
[1727178205705,3.77921,2646.1,2645.5,3.7799]
[1727178205926,3.77921,2646.1,2645.6,3.77984]
[1727178206649,3.87355911,2646.2,2645.7,3.77969]
[1727178206832,3.87355911,2646.2,2645.5,3.7799]
[1727178206833,3.77922,2646.1,2645.6,3.77985]
[1727178207007,3.77922,2646.1,2645.7,3.77968]
[1727178207206,3.77922,2646.1,2645.6,3.77985]
[1727178208239,3.77922,2646.1,2645.6,7.55963]
[1727178208448,3.77922,2646.1,2645.6,3.77978]
[1727178208738,3.77922,2646.1,2645.7,3.77971]
[1727178209806,0.78636985,2646.2,2645.8,3.77948]
[1727178210002,0.72444896,2646.2,2645.8,0.377948]
[1727178210225,3.77864,2646.5,2646.0,3.77919]
[1727178210948,4.56500985,2646.5,2646.0,3.77919]
[1727178211437,0.72101499,2646.4,2646.1,3.77914]
[1727178212448,2.58927744,2646.4,2646.1,3.77914]
[1727178212746,0.78636985,2646.4,2646.1,3.77914]
[1727178213036,2.58952673,2646.4,2646.1,3.77914]
[1727178213241,0.78636985,2646.4,2646.1,3.77914]
[1727178213538,1.80347404,2646.4,2646.1,3.77914]
[1727178213742,0.78636985,2646.5,2646.1,3.77914]
[1727178213917,2.58997763,2646.5,2646.1,3.77914]
[1727178214114,1.80360778,2646.4,2646.1,3.77914]
[1727178214319,1.86853452,2646.4,2646.1,3.77914]
[1727178214626,0.72174004,2646.3,2645.9,0.7527]
[1727178214835,0.78636985,2646.4,2646.2,3.779]
[1727178215023,0.78636985,2646.5,2646.2,3.779]
[1727178215414,0.78636985,2646.4,2646.2,3.779]
[1727178217460,2.59182659,2646.3,2646.2,3.779]
[1727178217953,1.80545674,2646.3,2646.2,3.779]
[1727178218255,0.78636985,2646.3,2646.2,3.779]
[1727178218758,0.78636985,2646.3,2646.1,3.779]
[1727178218954,0.78636985,2646.3,2646.2,3.779]
[1727178219455,1.50909079,2646.3,2645.7,3.77968]
[1727178219669,3.77943,2645.9,2645.5,3.77993]
[1727178220024,0.72258303,2645.8,2645.5,3.77993]
[1727178220740,0.72258303,2645.8,2645.6,3.77985]
[1727178220939,0.7865898,2645.9,2645.6,3.77985]
[1727178221141,2.59449424,2645.9,2645.6,3.77985]
[1727178221437,1.80802362,2645.8,2645.6,3.77985]
[1727178221630,0.7865898,2645.8,2645.6,3.77985]
[1727178222264,3.77981,2645.7,2645.1,0.56151771]
[1727178222568,2.59469445,2645.6,2645.2,3.78041]
[1727178222723,4.95936478,2645.7,2645.2,3.78041]
[1727178222724,2.59469445,2645.5,2645.2,3.78041]
[1727178223029,2.59469445,2645.5,2645.1,0.56151771]
[1727178223030,0.7865898,2645.5,2645.1,0.56151771]
[1727178223229,4.66104394,2645.6,2645.1,4.34205771]
[1727178223431,2.59456636,2645.5,2645.1,4.34205771]
[1727178223635,0.72319062,2645.4,2645.1,4.34205771]
[1727178223822,3.78022,2645.4,2644.9,3.78085]
[1727178224022,0.72314808,2645.3,2644.6,1.31421771]
[1727178224223,0.72314808,2645.3,2644.7,4.34265771]
[1727178224224,5.29023788,2645.2,2644.7,4.34265771]
[1727178224539,0.72338401,2645.1,2644.8,3.78099]
[1727178224737,0.7865898,2645.2,2644.7,4.34265771]
[1727178224929,1.51004995,2645.2,2644.7,4.34265771]
[1727178225263,5.29047995,2645.2,2644.7,4.34265771]
[1727178225561,0.72346015,2645.1,2644.7,4.34265771]
[1727178226165,0.81798234,2645.1,2644.7,0.56151771]
[1727178226336,3.78079,2645.0,2644.5,3.7867598]
[1727178226536,3.78058,2645.1,2644.5,3.7867498]
[1727178226537,4.6616995,2645.1,2644.5,3.7867498]
[1727178226743,0.72326021,2645.0,2644.6,3.7812]
[1727178226938,0.72326021,2645.0,2644.6,0.56151771]
[1727178227138,4.5672998,2645.1,2644.6,0.56151771]
[1727178227363,0.72317995,2645.0,2644.6,0.56151771]
[1727178227571,0.72317995,2645.0,2644.6,4.34271771]
[1727178227733,0.72317995,2645.0,2644.6,0.56151771]
[1727178227941,0.7865898,2645.1,2644.7,3.78114]
[1727178228246,1.80800851,2645.1,2644.7,3.78114]
[1727178228452,0.7865898,2645.2,2644.7,3.78114]
[1727178228656,2.59454218,2645.2,2644.7,3.78114]
[1727178228959,0.72318094,2645.1,2644.7,3.78114]
[1727178229165,0.7865898,2645.2,2644.8,3.78099]
[1727178229372,2.59475176,2645.2,2644.8,3.78099]
[1727178229532,0.72326478,2645.1,2644.8,3.78099]
[1727178229730,0.7865898,2645.2,2644.8,3.78099]
[1727178229930,2.5947439,2645.2,2644.8,3.78099]
[1727178230233,0.72326164,2645.1,2644.8,3.78099]
[1727178230462,4.5670198,2645.2,2644.7,3.7811]
[1727178230770,2.59554752,2645.1,2644.7,3.78113]
[1727178230925,0.7865898,2645.1,2644.7,3.78113]
[1727178231123,2.59557097,2645.1,2644.7,3.78113]
[1727178231363,0.7865898,2645.1,2644.7,3.78113]
[1727178231563,2.59585362,2645.1,2644.7,3.78113]
[1727178231754,0.7865898,2645.1,2644.7,3.78113]
[1727178231951,2.5958735,2645.1,2644.6,4.34274771]
[1727178232139,0.7865898,2645.1,2644.8,3.781]
[1727178232344,1.51032591,2645.1,2644.8,7.56192]
[1727178232559,0.7865898,2645.2,2644.9,3.78082]
[1727178232735,0.7865898,2645.1,2644.9,3.78082]
[1727178233067,0.7865898,2645.2,2644.9,3.78082]
[1727178233278,1.51036239,2645.2,2644.9,3.78082]
[1727178233569,2.59602128,2645.1,2644.9,3.78082]
[1727178233776,0.7865898,2645.1,2644.9,3.78082]
[1727178234340,0.7865898,2645.3,2644.6,0.56151771]
[1727178234545,1.51036525,2645.3,2644.8,3.78086]
[1727178234840,5.29069525,2645.3,2644.8,3.78086]
[1727178235078,0.72377545,2645.2,2644.8,7.56173]
[1727178235251,0.72377545,2645.2,2644.8,3.78086]
[1727178235443,1.8094241,2645.2,2644.8,3.78086]
[1727178235866,4.66143871,2645.3,2644.8,3.78086]
[1727178236066,2.59597083,2645.2,2644.8,7.56178]
[1727178236272,0.7865898,2645.2,2644.8,7.56178]
[1727178236581,2.59583111,2645.2,2644.8,7.56179]
[1727178236814,0.72369651,2645.1,2644.8,7.56178]
[1727178237091,0.7865898,2645.2,2644.8,3.78086]
[1727178237394,2.595724,2645.2,2644.8,3.78086]
[1727178237556,2.595724,2645.1,2644.8,7.56176]
[1727178237883,0.7865898,2645.1,2644.8,7.56176]
[1727178238263,0.7865898,2645.1,2644.8,3.78086]
[1727178238662,4.95988478,2645.3,2644.7,0.07561312]
[1727178238663,0.7865898,2645.3,2644.7,0.07561312]
[1727178238864,0.7865898,2645.3,2645.0,3.7807]
[1727178239056,1.08540553,2645.3,2645.0,3.7807]
[1727178239251,0.7865898,2645.4,2645.0,7.56134]
[1727178239453,2.59554123,2645.4,2645.0,3.78064]
[1727178239765,1.80895143,2645.3,2645.0,3.78064]
[1727178239965,0.7865898,2645.4,2645.0,3.78064]
[1727178240171,2.59551157,2645.4,2645.0,3.78064]
[1727178240382,1.80892177,2645.3,2645.0,3.78064]
[1727178240685,0.7865898,2645.4,2644.8,3.78089]
[1727178240988,0.7865898,2645.4,2645.0,3.78071]
[1727178240989,6.37571543,2645.4,2645.0,3.78071]
[1727178241193,0.72354625,2645.3,2645.0,3.78071]
[1727178241496,4.5668498,2645.4,2645.0,3.78071]
[1727178241685,1.80879243,2645.3,2645.0,3.78071]
[1727178242456,4.5668498,2645.4,2645.0,3.78071]
[1727178242798,1.80870366,2645.3,2645.0,3.78063]
[1727178243004,0.7865898,2645.3,2645.0,3.78063]
[1727178243161,1.51007099,2645.4,2645.0,3.78063]
[1727178243362,1.8085762,2645.3,2645.0,3.78063]
[1727178243557,0.7865898,2645.4,2645.0,3.78065]
[1727178243871,0.7865898,2645.3,2645.0,3.78065]
[1727178244080,1.87173895,2645.3,2645.0,3.78065]
[1727178244303,0.7865898,2645.3,2645.0,3.78065]
[1727178244658,2.59484891,2645.3,2645.0,3.78065]
[1727178244882,0.7865898,2645.3,2645.0,3.78065]
[1727178245078,2.59485262,2645.3,2645.0,3.78065]
[1727178245286,0.7865898,2645.3,2645.0,3.78065]
[1727178245588,2.59474425,2645.3,2645.0,3.78065]
[1727178245769,0.7865898,2645.3,2645.0,3.78065]
[1727178245969,2.59475951,2645.3,2645.0,3.78065]
[1727178246168,0.7865898,2645.3,2645.0,3.78065]
[1727178246990,0.7865898,2645.3,2645.1,3.78047]
[1727178247195,0.72322761,2645.4,2645.0,7.56128]
[1727178247196,0.7865898,2645.4,2645.0,7.56128]
[1727178247406,1.08498012,2645.4,2645.0,1.528628]
[1727178247608,1.96478126,2645.8,2645.6,3.77979]
[1727178247609,1.17955478,2645.8,2645.6,3.77979]
[1727178247958,1.17955478,2646.0,2645.8,3.77957]
[1727178248163,1.17955478,2646.0,2645.7,3.7797]
[1727178248864,1.17955478,2646.1,2645.7,3.7797]
[1727178249166,1.17955478,2646.2,2645.9,3.77934]
[1727178249364,1.57273971,2646.3,2645.9,3.77934]
[1727178249365,1.17955478,2646.3,2645.9,3.77934]
[1727178252604,4.95843478,2646.3,2645.9,3.77934]
[1727178253376,3.87348048,2646.2,2645.7,3.7796]
[1727178253715,3.87348048,2646.2,2645.5,3.77991]
[1727178253716,3.77915,2646.1,2645.5,3.77991]
[1727178253918,0.09449309,2646.0,2645.5,3.77991]
[1727178254790,3.77944,2645.9,2645.5,3.77991]
[1727178257104,5.0533378,2646.0,2645.5,7.55979]
[1727178257479,1.85700504,2645.9,2645.5,3.77988]
[1727178257685,1.85700504,2645.9,2645.5,7.5598]
[1727178258572,1.85700504,2645.9,2645.6,3.77985]
[1727178259375,1.85700504,2645.9,2645.5,3.77988]
[1727178259539,1.85700504,2645.9,2645.7,3.7797]
[1727178259818,1.17955478,2646.0,2645.8,3.77957]
[1727178259819,0.78622172,2646.0,2645.8,3.77957]
[1727178260481,1.8572725,2645.9,2645.8,3.77957]
[1727178260682,1.07105078,2645.9,2645.8,3.77957]
[1727178260934,0.78622172,2646.0,2645.7,3.7797]
[1727178261098,0.78622172,2645.9,2645.7,3.7797]
[1727178261281,1.8572725,2645.9,2645.7,3.7797]
[1727178261482,0.78622172,2645.9,2645.7,3.77965]
[1727178262030,0.78622172,2645.9,2645.5,3.78]
[1727178262315,0.78622172,2645.8,2645.5,3.78]
[1727178262884,1.85783059,2645.8,2645.5,3.78]
[1727178264416,1.85783059,2645.7,2645.5,7.55992]
[1727178264725,0.78622172,2645.7,2645.5,7.55984]
[1727178265219,1.85841174,2645.7,2645.5,7.55984]
[1727178265427,0.78622172,2645.8,2645.6,3.77985]
[1727178265721,1.85838076,2645.8,2645.6,3.77985]
[1727178266128,0.78622172,2645.8,2645.6,3.77985]
[1727178266287,0.78622172,2645.8,2645.7,3.77971]
[1727178266988,1.85840365,2645.8,2645.7,3.77971]
[1727178267420,2.57321268,2645.8,2645.6,7.55962]
[1727178267603,0.71480015,2645.7,2645.6,7.55954]
[1727178267783,0.78622172,2645.8,2645.6,3.77976]
[1727178267784,1.50102187,2645.8,2645.6,3.77976]
[1727178268099,1.50102187,2645.8,2645.6,3.77984]
[1727178269104,0.78622172,2645.8,2645.6,3.77984]
[1727178270223,0.78622172,2645.8,2645.4,3.78007]
[1727178270548,4.66034985,2645.8,2645.4,3.78012]
[1727178271525,3.87412813,2645.8,2645.4,3.78012]
[1727178271701,0.09450201,2645.9,2645.4,3.78012]
[1727178271905,3.87400201,2645.9,2645.4,7.56019]
[1727178272625,3.87400201,2645.9,2645.4,7.56015]
[1727178272827,3.87400201,2645.9,2645.4,3.78007]
[1727178273415,3.87371,2646.1,2645.6,3.77975]
[1727178273615,3.77941,2646.0,2645.4,3.78005]
[1727178273818,3.87402923,2645.9,2645.4,3.78005]
[1727178274012,3.77953,2645.9,2645.4,3.78005]
[1727178274367,3.77958,2645.8,2645.4,3.78005]
[1727178277438,0.78706437,2645.6,2645.4,3.78005]
[1727178278923,0.78706437,2645.6,2645.4,3.78005]
[1727178279556,0.78706437,2645.6,2645.4,7.56012]
[1727178280457,0.78706437,2645.6,2645.5,3.78]
[1727178281919,2.57524344,2645.6,2645.5,3.78]
[1727178283661,1.78817907,2645.6,2645.5,3.78]
[1727178283822,2.57587911,2645.6,2645.5,3.78]
[1727178284422,2.96877563,2645.6,2645.5,3.78]
[1727178285671,2.96980741,2645.6,2645.5,3.78]
[1727178288285,1.78921085,2645.6,2645.5,3.78]
[1727178288569,2.96980741,2645.6,2645.5,3.78]
[1727178288772,1.78921085,2645.6,2645.5,3.78]
[1727178289149,2.96980741,2645.6,2645.5,3.78]
[1727178289353,1.78921085,2645.6,2645.5,3.78]
[1727178289538,2.96980741,2645.6,2645.5,3.78]
[1727178290540,3.22304417,2645.6,2645.5,3.78]
[1727178291139,1.79075431,2645.6,2645.5,3.78]
[1727178291341,3.36488306,2645.6,2645.4,3.78005]
[1727178291540,2.97374046,2645.5,2645.4,3.78005]
[1727178291774,2.97374046,2645.5,2645.3,4.10683708]
[1727178292082,2.97374046,2645.4,2645.3,4.43341906]
[1727178292236,2.97374046,2645.4,2645.3,4.43349481]
[1727178293966,4.79704894,2645.4,2645.3,0.65323481]
[1727178294170,4.89155806,2645.4,2645.3,0.32657708]
[1727178294489,3.22292019,2645.4,2645.3,0.32657708]
[1727178295042,7.00306019,2645.4,2645.3,0.32657708]
[1727178295281,7.00306019,2645.4,2645.0,3.7807]
[1727178295282,8.97463184,2645.4,2645.0,3.7807]
[1727178295585,1.18420995,2645.2,2645.0,3.7807]
[1727178295788,1.7923376,2645.1,2645.0,3.7807]
[1727178295960,2.97654755,2645.1,2645.0,3.7807]
[1727178296279,2.97654755,2645.1,2644.9,4.30356314]
[1727178296484,2.58172656,2645.0,2644.9,4.30356314]
[1727178297998,2.58172656,2645.0,2644.9,7.43528314]
[1727178300256,2.58395212,2645.0,2644.9,7.43528314]
[1727178301342,2.97877311,2645.0,2644.9,0.52272314]
[1727178301643,7.10485395,2645.0,2644.9,0.52272314]
[1727178302154,7.01032508,2645.0,2644.9,0.52272314]
[1727178302354,4.80807188,2645.0,2644.9,0.52272314]
[1727178302941,8.58878188,2645.0,2644.9,0.52272314]
[1727178303775,8.58713137,2645.0,2644.9,0.52272314]
[1727178303980,2.97649171,2645.0,2644.9,0.52272314]
[1727178304180,1.79291265,2645.0,2644.9,4.30358314]
[1727178304352,2.5819002,2645.0,2644.9,4.30358314]
[1727178305888,2.5819002,2645.0,2644.9,3.78086]
[1727178307771,0.71716506,2645.0,2644.9,16.69852201]
[1727178308249,0.71716506,2645.0,2644.9,12.78076855]
[1727178308585,0.78898755,2645.1,2645.0,3.78071]
[1727178308885,2.58292416,2645.1,2645.0,3.78071]
[1727178309596,2.58292416,2645.1,2645.0,5.10461156]
[1727178309747,2.58292416,2645.1,2645.0,22.73407856]
[1727178309942,1.79393661,2645.1,2645.0,17.00767356]
[1727178310148,0.71757464,2645.1,2645.0,15.52324156]
[1727178310385,2.58306004,2645.1,2645.0,15.52324156]
[1727178311572,2.58306004,2645.1,2645.0,14.26641756]
[1727178313350,2.5830036,2645.1,2645.0,14.26641756]
[1727178315396,2.5830036,2645.1,2645.0,9.269002]
[1727178316667,0.14794738,2645.2,2645.1,3.78057]
[1727178316870,1.5784568,2645.5,2645.4,3.78014]
[1727178317072,1.43512315,2645.5,2645.4,3.78014]
[1727178317268,9.26372,2645.7,2645.4,3.78014]
[1727178317269,8.8684568,2645.7,2645.4,3.78014]
[1727178317474,1.41423614,2645.6,2645.5,3.78]